bitfinex-derivatives/quotes_SOLF0:USTF0_20260208
["timestamp","ask_amount","ask_price","bid_price","bid_amount"]
[1770524395441,8.97140499,86.97,86.931,10.87928157]
[1770524395643,8.97140499,86.969,86.931,10.87928157]
[1770524395842,8.97140499,86.968,86.931,10.87928157]
[1770524396042,6.41907427,86.971,86.931,10.87928157]
[1770524396355,8.97360232,86.97,86.931,10.87928157]
[1770524396553,8.97360232,86.969,86.931,10.87928157]
[1770524396753,8.97360232,86.968,86.931,10.87928157]
[1770524396957,8.97360232,86.967,86.931,10.87928157]
[1770524397146,6.41907427,86.971,86.931,10.87928157]
[1770524397342,8.9745045,86.97,86.931,10.87928157]
[1770524397647,8.9745045,86.969,86.931,10.87928157]
[1770524397955,6.41907427,86.971,86.931,10.87928157]
[1770524397956,5.79218211,86.984,86.931,10.87928157]
[1770524398153,8.97496409,86.983,86.931,10.87928157]
[1770524398356,8.97496409,86.982,86.941,10.87928157]
[1770524398554,8.97496409,86.981,86.941,10.87928157]
[1770524398855,8.97496409,86.98,86.941,10.87928157]
[1770524399051,8.97496409,86.979,86.941,10.87928157]
[1770524399252,5.81392342,86.977,86.941,10.87928157]
[1770524399452,5.81392342,86.975,86.941,10.87928157]
[1770524399654,3.38620862,86.97,86.93,10.87928157]
[1770524399855,15.03747884,86.969,86.93,10.87928157]
[1770524400053,6.06344111,86.969,86.93,10.87928157]
[1770524400650,3.38620862,86.95,86.912,10.87928157]
[1770524401557,6.07412131,86.959,86.912,10.87928157]
[1770524401754,9.09209926,86.97,86.921,10.87928157]
[1770524401952,8.97238348,86.969,86.93,3.38620862]
[1770524402158,5.71645334,86.979,86.931,10.87928157]
[1770524402358,5.71645334,86.977,86.931,10.87928157]
[1770524402559,8.97415992,86.976,86.931,10.87928157]
[1770524402759,8.97415992,86.975,86.931,10.87928157]
[1770524402959,8.97415992,86.974,86.931,10.87928157]
[1770524403158,8.97415992,86.973,86.931,10.87928157]
[1770524403459,8.97415992,86.972,86.931,10.87928157]
[1770524403659,8.97415992,86.971,86.931,10.87928157]
[1770524403856,8.97415992,86.97,86.931,10.87928157]
[1770524404061,5.71645334,86.977,86.931,10.87928157]
[1770524404261,3.38620862,86.97,86.931,10.87928157]
[1770524404454,5.71645334,86.977,86.931,10.87928157]
[1770524407254,8.97866144,86.976,86.931,10.87928157]
[1770524407461,5.71645334,86.977,86.931,10.87928157]
[1770524407659,8.97907272,86.976,86.931,10.87928157]
[1770524407866,5.71645334,86.977,86.931,10.87928157]
[1770524408061,8.97909572,86.976,86.931,10.87928157]
[1770524408249,5.71645334,86.977,86.931,10.87928157]
[1770524408453,8.98100638,86.976,86.931,10.87928157]
[1770524408655,5.71645334,86.977,86.931,10.87928157]
[1770524408858,8.98100476,86.976,86.931,10.87928157]
[1770524409057,5.71645334,86.977,86.931,10.87928157]
[1770524409252,8.9809053,86.976,86.931,10.87928157]
[1770524409464,8.9809053,86.975,86.931,10.87928157]
[1770524409664,5.71645334,86.977,86.931,10.87928157]
[1770524409861,8.98267052,86.976,86.931,10.87928157]
[1770524410066,8.98267052,86.975,86.931,10.87928157]
[1770524410264,8.98267052,86.974,86.931,10.87928157]
[1770524410459,8.98267052,86.973,86.931,10.87928157]
[1770524410765,8.98267052,86.972,86.931,10.87928157]
[1770524410959,8.98267052,86.971,86.931,10.87928157]
[1770524411159,5.71645334,86.977,86.941,10.1337563]
[1770524411360,8.98958301,86.976,86.941,10.1337563]
[1770524411561,8.98958301,86.975,86.951,10.1337563]
[1770524411761,8.98958301,86.974,86.951,10.1337563]
[1770524412066,5.92972881,86.991,86.951,10.1337563]
[1770524412268,9.01298768,86.99,86.951,10.1337563]
[1770524412465,9.01298768,86.989,86.951,10.1337563]
[1770524412666,9.01298768,86.988,86.951,10.1337563]
[1770524412865,9.01298768,86.987,86.951,10.1337563]
[1770524413066,5.92972881,86.991,86.951,10.1337563]
[1770524413067,9.01298768,86.986,86.951,10.1337563]
[1770524413269,9.01298768,86.985,86.951,10.1337563]
[1770524413469,9.01298768,86.984,86.951,10.1337563]
[1770524413669,9.01298768,86.983,86.951,10.1337563]
[1770524413868,9.01298768,86.982,86.951,10.1337563]
[1770524414173,9.01298768,86.981,86.951,10.1337563]
[1770524414370,9.01298768,86.98,86.951,10.1337563]
[1770524414568,9.01298768,86.979,86.951,10.1337563]
[1770524414768,9.01298768,86.978,86.951,10.1337563]
[1770524414968,5.92972881,86.991,86.951,10.1337563]
[1770524415170,9.01699477,86.99,86.951,10.1337563]
[1770524415371,9.01699477,86.989,86.951,10.1337563]
[1770524415665,9.01699477,86.988,86.951,10.1337563]
[1770524415867,9.01699477,86.987,86.961,10.57933051]
[1770524416071,6.12381921,87.005,86.961,10.57933051]
[1770524416273,3.38620862,87.0,86.961,10.57933051]
[1770524416471,9.0283611,86.999,86.961,10.57933051]
[1770524416767,3.38620862,87.0,86.961,10.57933051]
[1770524416768,9.0283611,86.998,86.961,10.57933051]
[1770524416971,9.0283611,86.997,86.961,10.57933051]
[1770524417173,9.0283611,86.996,86.961,10.57933051]
[1770524417364,9.0283611,86.995,86.961,10.57933051]
[1770524417564,6.14112474,86.993,86.946,10.57933051]
[1770524417778,6.15719458,86.991,86.946,10.57933051]
[1770524418070,9.0283611,86.99,86.946,10.57933051]
[1770524418373,9.0283611,86.989,86.946,10.57933051]
[1770524418566,9.0283611,86.988,86.946,10.57933051]
[1770524418762,9.0283611,86.987,86.946,10.57933051]
[1770524418963,9.0283611,86.986,86.946,10.57933051]
[1770524419167,9.0283611,86.985,86.946,10.57933051]
[1770524419370,9.0283611,86.984,86.951,10.57933051]
[1770524419565,6.17411103,87.005,86.951,10.57933051]
[1770524419877,6.13115322,87.003,86.951,10.57933051]
[1770524420169,9.02393311,87.002,86.951,10.57933051]
[1770524420369,9.02393311,87.001,86.951,10.57933051]
[1770524420570,9.02393311,87.0,86.951,10.57933051]
[1770524420775,9.02393311,86.999,86.951,10.57933051]
[1770524420978,6.13953277,87.002,86.951,10.57933051]
[1770524420979,9.02393311,86.998,86.951,10.57933051]
[1770524421167,9.02393311,86.997,86.951,10.57933051]
[1770524421373,15.17160048,86.996,86.951,10.57933051]
[1770524421574,9.02393311,86.995,86.951,10.57933051]
[1770524421879,9.02393311,86.994,86.951,10.57933051]
[1770524422078,9.02393311,86.993,86.951,10.57933051]
[1770524422378,6.14766737,86.996,86.951,10.57933051]
[1770524422580,9.01584525,86.995,86.951,10.57933051]
[1770524422778,9.01584525,86.994,86.951,10.57933051]
[1770524422978,9.01584525,86.993,86.951,10.57933051]
[1770524423180,9.01584525,86.992,86.951,10.57933051]
[1770524423474,9.01584525,86.991,86.951,10.57933051]
[1770524423780,9.01584525,86.99,86.951,10.57933051]
[1770524423982,6.14766737,86.996,86.951,10.57933051]
[1770524424176,9.01382512,86.995,86.951,10.57933051]
[1770524424376,9.01382512,86.994,86.951,10.57933051]
[1770524424577,9.01382512,86.993,86.951,10.57933051]
[1770524424882,9.01382512,86.992,86.951,10.57933051]
[1770524425182,9.01382512,86.991,86.951,10.57933051]
[1770524425480,6.14766737,86.996,86.951,10.57933051]
[1770524425678,9.01235195,86.995,86.951,10.57933051]
[1770524425881,9.01235195,86.994,86.951,10.57933051]
[1770524426083,9.01235195,86.993,86.951,10.57933051]
[1770524426274,6.20385015,86.989,86.94,10.57933051]
[1770524426481,14.1155911,87.017,86.94,10.57933051]
[1770524426482,6.20385015,86.979,86.94,10.57933051]
[1770524426783,15.2162021,86.978,86.94,10.57933051]
[1770524426977,9.01235195,86.977,86.94,10.57933051]
[1770524427171,3.38620862,86.97,86.94,10.57933051]
[1770524427577,6.21144584,86.975,86.94,10.57933051]
[1770524427882,20.99330511,87.012,86.92,3.38620862]
[1770524427883,3.38620862,86.97,86.921,10.57933051]
[1770524428085,9.01049691,86.969,86.931,10.57933051]
[1770524428283,6.243317,86.973,86.931,10.57933051]
[1770524428581,9.01093848,86.972,86.931,10.57933051]
[1770524428780,9.01093848,86.971,86.931,10.57933051]
[1770524428979,9.01093848,86.97,86.931,10.57933051]
[1770524429180,9.01093848,86.969,86.931,10.57933051]
[1770524429382,9.01093848,86.968,86.931,10.57933051]
[1770524429582,9.01093848,86.967,86.931,10.57933051]
[1770524429778,3.38620862,86.98,86.931,10.57933051]
[1770524430082,6.21626006,86.984,86.931,10.57933051]
[1770524430280,3.38620862,86.98,86.931,10.57933051]
[1770524430477,9.01725953,86.979,86.931,10.57933051]
[1770524430683,9.01725953,86.978,86.931,10.57933051]
[1770524430884,3.38620862,86.98,86.931,10.57933051]
[1770524431182,9.01977066,86.979,86.931,10.57933051]
[1770524431483,9.01977066,86.978,86.931,10.57933051]
[1770524431686,9.01977066,86.977,86.931,10.57933051]
[1770524431987,8.98725995,86.98,86.931,10.57933051]
[1770524432181,9.02114537,86.979,86.931,10.57933051]
[1770524432486,9.02114537,86.978,86.931,10.57933051]
[1770524432681,28.21716099,87.042,86.895,342.55357467]
[1770524432682,5.60801589,86.992,86.941,10.57933051]
[1770524432886,5.60801589,87.004,86.961,10.57933051]
[1770524433188,9.02391761,87.003,86.961,10.57933051]
[1770524433387,9.02391761,87.002,86.961,10.57933051]
[1770524433582,9.02391761,87.001,86.961,10.57933051]
[1770524433783,12.41012623,87.0,86.961,10.57933051]
[1770524433989,5.86713316,86.998,86.961,10.57933051]
[1770524434187,3.38620862,86.99,86.961,10.57933051]
[1770524434590,5.86713316,86.996,86.961,10.57933051]
[1770524434792,9.0259542,86.995,86.961,10.57933051]
[1770524434991,9.0259542,86.994,86.961,10.57933051]
[1770524435187,9.0259542,86.993,86.961,10.57933051]
[1770524435394,9.0259542,86.992,86.961,10.57933051]
[1770524435593,9.02416029,86.991,86.961,10.57933051]
[1770524435793,9.02416029,86.99,86.961,10.57933051]
[1770524436093,5.86713316,86.996,86.961,10.57933051]
[1770524436393,9.0240606,86.995,86.961,10.57933051]
[1770524436587,9.0240606,86.994,86.961,10.57933051]
[1770524436789,9.0240606,86.993,86.961,10.57933051]
[1770524436989,5.86713316,86.996,86.961,10.57933051]
[1770524436990,9.0240606,86.992,86.961,10.57933051]
[1770524437186,5.86713316,86.996,86.961,10.57933051]
[1770524437392,9.02459761,86.995,86.961,10.57933051]
[1770524437584,9.02459761,86.994,86.961,10.57933051]
[1770524437894,9.02459761,86.993,86.961,10.57933051]
[1770524438094,9.02459761,86.992,86.961,10.57933051]
[1770524438290,8.71052976,86.99,86.95,10.97392421]
[1770524438489,5.32671903,86.988,86.95,10.97392421]
[1770524438686,5.32632467,86.986,86.95,10.97392421]
[1770524438997,9.02508774,86.985,86.95,10.97392421]
[1770524439191,9.02508774,86.985,86.93,3.38381073]
[1770524439192,5.332968,86.983,86.938,10.97392421]
[1770524439497,9.02508774,86.982,86.938,10.97392421]
[1770524439701,10.45601776,86.997,86.938,10.97392421]
[1770524439702,5.5073676,86.979,86.938,10.97392421]
[1770524439889,14.53245534,86.978,86.938,10.97392421]
[1770524440093,9.02508774,86.977,86.938,10.97392421]
[1770524440292,9.02508774,86.976,86.938,10.97392421]
[1770524440493,9.02508774,86.975,86.938,10.97392421]
[1770524440694,9.02508774,86.974,86.938,10.97392421]
[1770524440895,9.02508774,86.973,86.938,10.97392421]
[1770524441196,8.90390224,86.99,86.938,10.97392421]
[1770524441396,9.02706453,86.989,86.951,10.97392421]
[1770524441598,9.02706453,86.988,86.951,10.97392421]
[1770524441793,5.52009151,87.003,86.951,10.97392421]
[1770524441994,5.43028842,87.001,86.951,10.97392421]
[1770524442195,9.05508299,87.0,86.951,10.97392421]
[1770524442399,5.43670546,86.998,86.951,10.97392421]
[1770524442599,9.05508299,86.997,86.951,10.97392421]
[1770524442901,9.05508299,86.996,86.951,10.97392421]
[1770524443099,9.05508299,86.995,86.951,10.97392421]
[1770524443299,9.05508299,86.994,86.951,10.97392421]
[1770524443600,5.4426964,86.988,86.951,10.97392421]
[1770524443797,9.05508299,86.987,86.951,10.97392421]
[1770524444002,5.4426964,86.988,86.951,10.97392421]
[1770524444202,9.05146804,86.987,86.951,10.97392421]
[1770524444402,5.4426964,86.988,86.951,10.97392421]
[1770524444598,9.051217,86.987,86.951,10.97392421]
[1770524444797,10.3527,87.002,86.951,10.97392421]
[1770524444798,5.52389144,87.0,86.951,10.97392421]
[1770524445005,5.52389144,86.998,86.951,10.97392421]
[1770524445196,9.05130164,86.997,86.951,10.97392421]
[1770524445396,9.05130164,86.996,86.951,10.97392421]
[1770524445597,9.05130164,86.995,86.951,10.97392421]
[1770524445797,9.05130164,86.994,86.951,10.97392421]
[1770524445998,9.05130164,86.993,86.951,10.97392421]
[1770524446198,9.05130164,86.992,86.951,10.97392421]
[1770524446398,5.52389144,86.998,86.951,10.97392421]
[1770524446399,9.05130164,86.991,86.951,10.97392421]
[1770524446704,5.52389144,86.998,86.951,10.97392421]
[1770524446904,9.0537697,86.997,86.951,10.97392421]
[1770524447095,9.0537697,86.996,86.951,10.97392421]
[1770524447297,9.0537697,86.995,86.951,10.97392421]
[1770524447498,9.0537697,86.994,86.951,10.97392421]
[1770524447800,9.0537697,86.993,86.951,10.97392421]
[1770524447997,9.0537697,86.992,86.951,10.97392421]
[1770524448302,9.0537697,86.991,86.951,10.97392421]
[1770524448503,9.0537697,86.99,86.951,10.97392421]
[1770524448704,9.0537697,86.989,86.951,10.97392421]
[1770524448904,9.0537697,86.988,86.951,10.97392421]
[1770524449208,9.0537697,86.987,86.951,10.97392421]
[1770524449409,9.0537697,86.986,86.951,10.97392421]
[1770524449609,9.0537697,86.985,86.951,10.97392421]
[1770524449810,9.0537697,86.984,86.951,10.97392421]
[1770524450013,5.62926061,86.997,86.951,10.97392421]
[1770524450205,5.63511116,86.989,86.951,10.97392421]
[1770524450408,5.63511116,86.987,86.951,10.97392421]
[1770524451308,9.05873887,86.986,86.951,10.97392421]
[1770524451509,5.64061246,86.984,86.951,10.97392421]
[1770524451709,8.96213516,86.98,86.931,10.97392421]
[1770524451915,5.57832443,86.978,86.931,10.97392421]
[1770524459026,9.06168842,86.977,86.931,10.97392421]
[1770524459222,5.57832443,86.978,86.931,10.97392421]
[1770524459421,9.06135135,86.977,86.931,10.97392421]
[1770524459718,5.57832443,86.978,86.931,10.97392421]
[1770524460126,9.05858408,86.977,86.931,10.97392421]
[1770524460424,9.05858408,86.976,86.931,10.97392421]
[1770524460730,9.05858408,86.975,86.931,10.97392421]
[1770524460928,5.71151211,86.973,86.931,10.97392421]
[1770524461229,5.71151211,86.969,86.931,10.97392421]
[1770524461432,5.71666449,86.967,86.931,10.97392421]
[1770524461728,5.71666449,86.965,86.914,10.97392421]
[1770524462029,5.63054477,86.96,86.914,10.97392421]
[1770524462234,9.05621637,86.959,86.914,10.97392421]
[1770524462434,9.05621637,86.958,86.914,10.97392421]
[1770524462732,5.63054477,86.96,86.914,10.97392421]
[1770524463433,5.64041339,86.982,86.93,3.38381073]
[1770524463633,5.60925921,86.959,86.921,10.97392421]
[1770524463832,9.05274367,86.958,86.921,10.97392421]
[1770524464029,5.60925921,86.959,86.921,10.97392421]
[1770524464430,9.05346508,86.958,86.921,10.97392421]
[1770524464631,9.05346508,86.957,86.921,10.97392421]
[1770524464931,9.05346508,86.956,86.921,10.97392421]
[1770524465133,9.05346508,86.955,86.921,10.97392421]
[1770524465338,5.60925921,86.959,86.921,10.97392421]
[1770524465635,5.61889569,86.957,86.909,10.97392421]
[1770524465830,5.74704105,86.955,86.909,10.97392421]
[1770524466035,9.05229019,86.954,86.909,10.97392421]
[1770524466234,9.05229019,86.953,86.909,10.97392421]
[1770524466534,9.05229019,86.952,86.909,10.97392421]
[1770524466737,5.74704105,86.954,86.911,10.47420392]
[1770524466935,9.04861089,86.953,86.911,10.47420392]
[1770524467134,5.74704105,86.954,86.911,10.47420392]
[1770524467436,9.04726895,86.953,86.911,10.47420392]
[1770524467636,5.74704105,86.954,86.911,10.47420392]
[1770524467839,9.04513911,86.953,86.911,10.47420392]
[1770524468036,5.74704105,86.954,86.911,10.47420392]
[1770524468437,9.04197313,86.953,86.911,10.47420392]
[1770524468637,5.74704105,86.954,86.911,10.47420392]
[1770524468935,9.0419605,86.953,86.911,10.47420392]
[1770524469235,3.38381073,86.95,86.911,10.47420392]
[1770524471636,5.74704105,86.954,86.911,10.47420392]
[1770524471834,5.8614725,86.952,86.911,10.47420392]
[1770524482234,10.3587,86.951,86.911,10.47420392]
[1770524485353,16.37149931,86.951,86.911,10.47420392]
[1770524487148,10.3599,86.941,86.911,10.47420392]
[1770524488649,10.3599,86.941,86.911,3.92e-06]
[1770524489649,10.3611,86.931,86.911,3.92e-06]
[1770524489850,10.3611,86.931,86.9,1.465e-05]
[1770524491249,10.3611,86.931,86.91,1.073e-05]
[1770524491444,3.38381073,86.97,86.858,34.56]
[1770524491445,11.27458089,86.969,86.92,1.073e-05]
[1770524491644,11.27458089,86.967,86.92,1.073e-05]
[1770524491847,11.27458089,86.965,86.92,1.073e-05]
[1770524492150,11.27458089,86.965,86.921,7.49e-05]
[1770524492350,11.27458089,86.963,86.921,7.49e-05]
[1770524492549,11.27458089,86.961,86.921,7.49e-05]
[1770524492750,10.3595,86.945,86.921,7.49e-05]
[1770524493353,10.3581,86.956,86.93,1.073e-05]
[1770524493553,10.3581,86.956,86.921,7.49e-05]
[1770524493852,10.3581,86.956,86.92,3.38381073]
[1770524493853,10.3581,86.956,86.92,1.073e-05]
[1770524494652,11.27458089,86.962,86.92,1.073e-05]
[1770524494956,11.27458089,86.96,86.92,1.073e-05]
[1770524495754,11.27458089,86.96,86.921,8.59297949]
[1770524496853,11.16607384,86.976,86.931,8.65402118]
[1770524497057,8.97844612,86.975,86.951,8.65402118]
[1770524497257,11.16607384,87.002,86.961,8.78331552]
[1770524497451,8.98033084,87.001,86.961,8.78331552]
[1770524497758,8.98033084,87.0,86.961,8.78331552]
[1770524497950,11.16607384,87.002,86.961,8.78331552]
[1770524497951,8.98033084,86.999,86.961,8.78331552]
[1770524498152,8.98033084,86.998,86.961,8.78331552]
[1770524498347,11.16607384,87.017,86.97,3.38299781]
[1770524498549,8.97808022,87.016,86.98,3.38299781]
[1770524498745,8.97808022,87.015,86.981,8.55615089]
[1770524498952,8.97808022,87.014,86.981,8.55615089]
[1770524499152,8.97808022,87.013,86.981,8.55615089]
[1770524499359,8.97808022,87.012,86.981,8.55615089]
[1770524499655,11.16607384,87.028,86.981,8.55615089]
[1770524499857,8.97311122,87.027,86.981,8.55615089]
[1770524500051,11.16607384,87.025,86.981,8.55615089]
[1770524500257,11.16607384,87.023,86.981,8.55615089]
[1770524500460,8.97311122,87.022,86.981,8.55615089]
[1770524500756,11.16607384,87.023,86.981,8.55615089]
[1770524509663,11.16607384,87.056,86.991,9.88436363]
[1770524509856,11.16607384,87.049,86.991,9.88436363]
[1770524510060,3.38299781,87.03,86.991,9.88436363]
[1770524511064,11.16607384,87.039,86.991,9.88436363]
[1770524516075,11.16607384,87.069,87.011,10.61010168]
[1770524516276,20.99330511,87.102,87.011,10.61010168]
[1770524516277,11.16607384,87.059,87.011,10.61010168]
[1770524516668,3.38299781,87.05,87.011,10.61010168]
[1770524516868,14.54907165,87.05,87.011,10.61010168]
[1770524517570,14.54907165,87.05,86.901,10.82013229]
[1770524517571,11.16607384,87.05,86.901,10.82013229]
[1770524517766,3.38299781,86.98,86.921,11.01262611]
[1770524517970,3.38299781,86.98,86.93,3.38299781]
[1770524518168,3.38299781,86.98,86.931,11.01262611]
[1770524519178,11.16607384,87.0,86.951,11.01262611]
[1770524519471,11.16607384,87.0,86.96,3.38299781]
[1770524519671,11.16607384,87.0,86.96,14.39562392]
[1770524520078,11.16607384,87.0,86.96,11.01262611]
[1770524521578,11.16607384,87.0,86.961,11.01262611]
[1770524523472,11.16607384,87.019,86.97,3.38299781]
[1770524523677,11.16607384,87.019,86.896,161.2361]
[1770524523678,11.16607384,87.038,86.981,11.01262611]
[1770524523878,11.16607384,87.029,86.981,11.01262611]
[1770524525975,328.56,87.096,86.912,304.30997112]
[1770524525976,12.57118274,87.042,87.0,3.38299781]
[1770524527179,12.57118274,87.039,86.977,12.17773698]
[1770524527386,3.38299781,87.03,86.98,3.38299781]
[1770524527585,12.57118274,87.029,86.98,3.38299781]
[1770524530487,3.38299781,87.01,86.965,12.59754603]
[1770524530680,12.57118274,87.009,86.965,12.59754603]
[1770524533085,3.38299781,87.0,86.952,12.85301363]
[1770524533284,12.44944297,86.999,86.952,12.85301363]
[1770524534588,12.44944297,86.979,86.939,13.0552132]
[1770524534990,10.3511,87.016,86.924,13.05939417]
[1770524534991,12.44944297,86.969,86.924,13.05939417]
[1770524536597,12.44944297,86.969,86.93,3.38299781]
[1770524537094,12.44944297,86.969,86.925,10.3618]
[1770524537593,12.44944297,86.969,86.93,3.38299781]
[1770524537793,12.44944297,86.969,86.924,13.05939417]
[1770524538188,12.44944297,86.969,86.91,3.38299781]
[1770524538394,12.44944297,86.959,86.91,16.82334037]
[1770524542298,12.44944297,86.959,86.911,13.53960074]
[1770524543694,12.44944297,86.959,86.912,10.3632]
[1770524543890,12.44944297,86.972,86.93,3.38299781]
[1770524546196,12.44944297,86.972,86.94,3.38299781]
[1770524547095,12.44944297,86.972,86.93,16.92259855]
[1770524548393,12.44944297,86.989,86.941,13.53960074]
[1770524548697,12.44944297,86.989,86.882,161.2633]
[1770524548698,12.44944297,87.025,86.981,13.53960074]
[1770524548900,12.44944297,87.025,86.99,3.38299781]
[1770524549200,12.44944297,87.049,87.01,3.38299781]
[1770524549899,12.44944297,87.049,87.007,13.02670939]
[1770524550091,12.44944297,87.049,87.02,3.38299781]
[1770524551000,12.44944297,87.049,87.03,3.38299781]
[1770524551205,10.3421,87.091,87.03,3.38299781]
[1770524551390,8.94283053,87.09,87.02,9.04634203]
[1770524551596,8.94283053,87.089,87.02,9.04634203]
[1770524551800,8.94283053,87.088,87.02,9.04634203]
[1770524552003,8.94283053,87.087,87.02,9.04634203]
[1770524552197,8.94283053,87.086,87.02,9.04634203]
[1770524552393,8.94283053,87.085,87.021,23.88990074]
[1770524552699,441.68429193,87.098,87.022,13.53960074]
[1770524552904,8.94225127,87.097,87.025,10.3499]
[1770524553203,8.94225127,87.096,87.04,9.04634203]
[1770524553405,12.44944297,87.095,87.04,22.58594277]
[1770524554304,12.44944297,87.095,87.041,13.53960074]
[1770524554699,12.44944297,87.095,87.021,13.53960074]
[1770524554906,12.44944297,87.095,87.024,10.3499]
[1770524555204,12.44944297,87.095,87.025,13.53960074]
[1770524556004,12.44944297,87.095,87.04,22.27914881]
[1770524556907,12.44944297,87.095,87.041,13.23280678]
[1770524559001,12.44944297,87.095,87.025,13.23280678]
[1770524563208,10.3419,87.093,87.025,13.23280678]
[1770524563406,13.91677057,87.092,87.025,13.23280678]
[1770524563611,13.91677057,87.089,87.011,13.23280678]
[1770524563812,13.91677057,87.082,87.011,13.23280678]
[1770524564809,10.3436,87.079,87.011,13.23280678]
[1770524565016,13.91677057,87.082,87.011,13.23280678]
[1770524565714,13.91677057,87.081,87.011,13.23280678]
[1770524565921,13.91677057,87.079,87.011,13.23280678]
[1770524567021,13.91677057,87.076,87.011,13.23280678]
[1770524568315,13.91677057,87.101,87.031,13.23280678]
[1770524569922,10.341,87.1,87.031,13.23280678]
[1770524570226,13.91677057,87.099,87.031,13.23280678]
[1770524570719,13.91677057,87.092,87.031,13.23280678]
[1770524571821,13.91677057,87.09,87.031,13.23280678]
[1770524572821,13.91677057,87.088,87.031,13.23280678]
[1770524573625,9.04723362,87.11,87.031,13.23280678]
[1770524573626,13.91677057,87.082,87.031,13.23280678]
[1770524574732,13.91677057,87.077,87.031,13.23280678]
[1770524575428,10.344,87.075,87.031,13.23280678]
[1770524575730,13.91677057,87.074,87.031,13.23280678]
[1770524578830,13.91677057,87.074,87.019,13.23280678]
[1770524584237,13.91677057,87.1,87.031,13.23280678]
[1770524585241,13.91677057,87.113,87.041,13.23280678]
[1770524585737,13.91677057,87.113,87.011,34.56]
[1770524585738,13.91677057,87.113,87.061,14.49044453]
[1770524585938,13.91677057,87.113,87.067,14.49044453]
[1770524588636,13.91677057,87.113,87.04,9.04723362]
[1770524588637,13.91677057,87.113,87.055,14.49044453]
[1770524592741,8.90855443,87.112,87.055,14.49044453]
[1770524592944,13.90986499,87.11,87.055,14.49044453]
[1770524593345,13.90986499,87.108,87.059,10.3458]
[1770524593545,13.90986499,87.106,87.06,13.66569925]
[1770524593749,22.83511539,87.105,87.06,13.66569925]
[1770524593949,13.90986499,87.105,87.06,13.66569925]
[1770524594450,8.92824132,87.104,87.062,13.66569925]
[1770524594644,8.92824132,87.103,87.062,13.66569925]
[1770524594845,13.90986499,87.105,87.062,13.66569925]
[1770524595052,8.92870814,87.104,87.062,13.66569925]
[1770524595247,8.9301558,87.103,87.066,10.345]
[1770524595446,13.90986499,87.101,87.062,13.66569925]
[1770524596049,22.83977793,87.1,87.062,13.66569925]
[1770524596351,13.90986499,87.1,87.062,13.66569925]
[1770524596840,13.90986499,87.098,87.049,13.66569925]
[1770524597044,13.90986499,87.096,87.049,13.66569925]
[1770524597245,13.90986499,87.094,87.049,13.66569925]
[1770524597549,13.90986499,87.092,87.049,13.66569925]
[1770524597753,22.83819302,87.091,87.049,13.66569925]
[1770524598055,13.90986499,87.089,87.049,13.66569925]
[1770524598241,13.90986499,87.087,87.049,13.66569925]
[1770524598749,8.92796826,87.086,87.049,13.66569925]
[1770524598950,13.90986499,87.084,87.017,13.66569925]
[1770524599142,13.90986499,87.082,87.017,13.66569925]
[1770524600038,294.0,87.142,87.017,13.66569925]
[1770524600039,13.90986499,87.08,87.017,13.66569925]
[1770524600249,8.92787076,87.079,87.017,13.66569925]
[1770524600445,8.92787076,87.078,87.017,13.66569925]
[1770524600645,13.90986499,87.08,87.017,13.66569925]
[1770524600845,8.92796093,87.079,87.017,13.66569925]
[1770524601041,8.92796093,87.078,87.017,13.66569925]
[1770524601339,13.90986499,87.08,87.017,13.66569925]
[1770524601545,8.92877402,87.079,87.017,13.66569925]
[1770524601744,13.90986499,87.08,87.019,13.66569925]
[1770524601946,13.90986499,87.092,87.019,13.66569925]
[1770524602149,9.04723362,87.12,87.031,13.66569925]
[1770524602150,13.90986499,87.104,87.031,13.66569925]
[1770524602343,13.90986499,87.102,87.031,13.66569925]
[1770524602547,13.90986499,87.1,87.031,13.66569925]
[1770524602747,22.83990984,87.099,87.031,13.66569925]
[1770524602947,13.90986499,87.097,87.032,13.66569925]
[1770524603141,13.90986499,87.095,87.032,13.66569925]
[1770524603346,13.90986499,87.093,87.032,13.66569925]
[1770524603546,13.90986499,87.091,87.032,13.66569925]
[1770524604452,13.90986499,87.091,87.038,13.66569925]
[1770524605850,13.90986499,87.091,87.04,13.66569925]
[1770524606754,13.90986499,87.091,87.042,10.3478]
[1770524606952,13.90986499,87.091,87.043,13.66569925]
[1770524608754,13.90986499,87.091,87.046,13.66569925]
[1770524609861,13.90986499,87.091,87.047,10.3472]
[1770524610058,13.90986499,87.091,87.048,13.66569925]
[1770524610660,13.90986499,87.091,87.05,10.3469]
[1770524610860,13.90986499,87.091,87.051,13.66569925]
[1770524611859,13.90986499,87.091,87.053,13.66569925]
[1770524612057,13.90986499,87.089,87.026,13.66569925]
[1770524612262,13.90986499,87.087,87.026,13.66569925]
[1770524612458,13.90986499,87.085,87.026,13.66569925]
[1770524612654,13.90986499,87.085,86.997,34.56]
[1770524612655,13.90986499,87.083,87.032,13.66569925]
[1770524613464,13.90986499,87.083,87.045,10.3474]
[1770524613861,13.90986499,87.083,87.045,24.01309925]
[1770524614165,13.90986499,87.083,87.045,13.66569925]
[1770524614462,13.90986499,87.081,87.045,13.66569925]
[1770524617460,13.48939341,87.069,87.034,10.3488]
[1770524620559,13.48939341,87.113,87.051,14.13579259]
[1770524620760,13.48939341,87.099,87.051,14.13579259]